bitfinex-derivatives/quotes_BNBF0:USTF0_20250302
["timestamp","ask_amount","ask_price","bid_price","bid_amount"]
[1740929997274,0.2854853,617.9,615.57,0.29725634]
[1740929997474,0.2854853,617.89,615.57,0.29725634]
[1740929997768,0.2854853,617.88,615.57,0.29725634]
[1740929998174,0.2854853,617.87,615.57,0.29725634]
[1740929998375,0.2854853,617.86,615.57,0.29725634]
[1740929998669,0.2854853,617.85,615.57,0.29725634]
[1740929998874,0.2854853,617.84,615.57,0.29725634]
[1740929999173,0.2854853,617.83,615.56,0.3249074]
[1740929999475,0.2854853,617.82,615.56,0.3249074]
[1740929999871,0.2854853,617.81,615.56,0.3249074]
[1740930000073,0.2854853,617.8,615.57,0.29760348]
[1740930000372,0.2854853,617.79,615.56,0.3249074]
[1740930000571,0.2854853,617.86,615.56,0.3249074]
[1740930000770,0.2854853,617.85,615.56,0.3249074]
[1740930000968,0.2854853,617.84,615.56,0.3249074]
[1740930001273,0.2854853,617.83,615.56,0.3249074]
[1740930001471,0.2854853,617.82,615.56,0.3249074]
[1740930001873,1.69382217,617.87,615.56,0.3249074]
[1740930002173,0.28571825,617.86,615.56,0.3249074]
[1740930002371,0.28571825,617.85,615.57,0.29738372]
[1740930002675,0.28571825,617.84,615.57,0.29738372]
[1740930002875,0.28571825,617.83,615.57,0.29738372]
[1740930003075,0.28571825,617.82,615.57,0.29738372]
[1740930003379,0.28571825,617.81,615.57,0.29738372]
[1740930003573,0.28571825,617.8,615.57,0.29738372]
[1740930003874,0.28571825,617.79,615.57,0.29738372]
[1740930004075,0.28571825,617.86,615.57,0.29738372]
[1740930004278,0.28571825,617.85,615.57,0.29738372]
[1740930004474,0.28549056,617.84,615.58,0.2968899]
[1740930004673,0.28549056,617.83,615.57,0.2968899]
[1740930004871,0.28549056,617.86,615.58,0.2968899]
[1740930005071,0.28549056,617.82,615.78,1.16391059]
[1740930005272,0.28549056,617.85,615.78,1.16391059]
[1740930005471,0.28549056,617.84,615.79,0.2968899]
[1740930005677,0.28549056,617.86,615.79,0.2968899]
[1740930005879,0.28549056,617.85,615.79,0.2968899]
[1740930006178,0.28549056,617.84,615.79,0.2968899]
[1740930006379,0.28549056,617.84,615.81,0.32477549]
[1740930006679,0.28549056,617.83,615.81,0.32477549]
[1740930006980,0.28549056,617.82,615.81,0.32477549]
[1740930007279,1.69382217,617.87,615.89,1.16391059]
[1740930007280,0.28549056,617.81,615.89,1.16391059]
[1740930007478,0.28549056,617.8,615.89,1.16391059]
[1740930007874,0.28549056,617.79,615.89,1.16391059]
[1740930008077,0.28549056,617.78,615.89,1.16391059]
[1740930008279,0.28549056,617.77,615.89,1.16391059]
[1740930008478,0.28549056,617.76,615.89,1.16391059]
[1740930008676,0.28549056,617.75,615.89,1.16391059]
[1740930008879,0.28549056,617.74,615.89,1.16391059]
[1740930009175,0.28549056,617.73,615.89,1.16391059]
[1740930009382,1.69383591,617.77,615.89,1.16391059]
[1740930009583,0.28563611,617.76,615.89,1.16391059]
[1740930009782,1.69383591,617.77,615.9,0.32472804]
[1740930009783,0.28563611,617.75,615.9,0.32472804]
[1740930009983,0.28563611,617.74,615.9,0.32472804]
[1740930010183,0.28563611,617.73,615.9,0.32472804]
[1740930010383,0.28563611,617.72,615.9,0.32472804]
[1740930010585,0.28563611,617.71,615.9,0.32472804]
[1740930010783,0.28563611,617.7,615.9,0.32472804]
[1740930011285,0.28563611,617.69,615.9,0.32472804]
[1740930011483,0.28563611,617.68,615.9,0.32472804]
[1740930011783,0.28563611,617.67,615.56,0.986]
[1740930011980,0.28563611,617.66,615.56,0.986]
[1740930012485,0.28563611,617.65,615.56,0.986]
[1740930012878,0.28563611,617.64,615.56,0.986]
[1740930013284,0.28563611,617.63,615.56,0.986]
[1740930013485,0.28563611,617.62,615.56,0.986]
[1740930013685,0.28563611,617.61,615.56,0.986]
[1740930013988,0.28563611,617.6,615.56,0.986]
[1740930014184,0.28563611,617.59,615.56,0.986]
[1740930014484,0.28563611,617.58,615.56,0.986]
[1740930014780,0.28563611,617.57,615.56,0.986]
[1740930014985,0.28563611,617.56,615.56,0.986]
[1740930015186,0.28563611,617.55,615.56,0.986]
[1740930015486,0.28563611,617.54,615.56,0.986]
[1740930015686,0.28563611,617.53,615.56,0.986]
[1740930015882,0.28563611,617.52,615.56,0.986]
[1740930016088,0.28563611,617.51,615.56,0.986]
[1740930016289,0.28563611,617.5,615.56,0.986]
[1740930016484,0.28563611,617.49,615.56,0.986]
[1740930016683,0.28563611,617.48,615.56,0.986]
[1740930016884,0.28563611,617.47,615.56,0.986]
[1740930017087,0.28563611,617.46,615.56,0.986]
[1740930017590,0.28563611,617.45,615.56,0.986]
[1740930017790,0.28563611,617.44,615.56,0.986]
[1740930017991,0.28563611,617.43,615.56,0.986]
[1740930018285,0.28563611,617.42,615.56,0.986]
[1740930018487,0.28563611,617.41,615.56,0.986]
[1740930018684,0.28563611,617.4,615.56,0.986]
[1740930018888,0.28563611,617.39,615.56,1.849]
[1740930019089,0.28563611,617.38,615.56,1.849]
[1740930019290,0.28563611,617.37,615.56,1.849]
[1740930019486,0.28563611,617.36,615.56,1.849]
[1740930019685,0.28563611,617.35,615.56,1.849]
[1740930019991,0.28563611,617.34,615.56,1.849]
[1740930020185,0.28563611,617.33,615.56,1.849]
[1740930020391,0.28563611,617.32,615.56,1.849]
[1740930020692,0.28563611,617.31,615.56,1.849]
[1740930020991,0.28563611,617.3,615.56,1.849]
[1740930021391,0.28563611,617.29,615.56,1.849]
[1740930021692,0.28563611,617.28,615.56,1.849]
[1740930021891,0.28563611,617.27,615.56,1.849]
[1740930022087,0.28563611,617.26,615.56,1.849]
[1740930022292,0.28563611,617.25,615.56,1.849]
[1740930022489,0.28563611,617.24,615.56,1.849]
[1740930022690,0.28563611,617.23,615.56,1.849]
[1740930023094,0.28563611,617.22,615.56,1.849]
[1740930023391,0.28563611,617.21,615.56,1.849]
[1740930023591,0.28563611,617.2,615.56,1.849]
[1740930023794,0.28563611,617.19,615.56,1.849]
[1740930023994,0.28563611,617.18,615.56,1.849]
[1740930024191,0.28563611,617.17,615.56,0.863]
[1740930024392,0.28563611,617.16,615.56,0.863]
[1740930024593,0.28651447,617.15,615.56,0.863]
[1740930024793,0.28651447,617.14,615.56,0.863]
[1740930025193,0.28651447,617.13,615.56,0.863]
[1740930025388,0.28651447,617.12,615.56,0.863]
[1740930025695,0.28651447,617.11,615.56,0.863]
[1740930025895,0.28651447,617.1,615.56,0.863]
[1740930026194,1.69520423,617.41,615.56,0.863]
[1740930026195,0.28651447,617.09,615.56,0.863]
[1740930026395,0.28651447,617.08,615.56,0.863]
[1740930026895,0.32411758,617.06,615.56,0.863]
[1740930027094,0.28651447,617.05,615.56,0.863]
[1740930027395,0.32411758,617.06,615.56,1.619]
[1740930027396,0.28651447,617.04,615.56,1.619]
[1740930027789,0.28651447,617.03,615.56,1.619]
[1740930027994,0.28651447,617.02,615.56,1.619]
[1740930028194,0.28651447,617.01,615.56,1.619]
[1740930028391,0.28651447,617.0,615.56,1.619]
[1740930028593,0.28651447,616.99,615.56,1.619]
[1740930028789,0.28651447,616.98,615.56,1.619]
[1740930028995,0.28651447,616.97,615.56,1.619]
[1740930029196,0.28651447,616.96,615.56,1.619]
[1740930029395,1.69666436,617.01,615.56,1.619]
[1740930029693,0.28617369,617.0,615.56,1.619]
[1740930029897,0.28617369,616.99,615.56,1.619]
[1740930030093,0.28617369,616.98,615.56,1.619]
[1740930030397,0.28617369,616.97,615.56,1.619]
[1740930030700,0.28617369,616.96,615.56,1.619]
[1740930030896,0.28617369,617.0,615.56,1.619]
[1740930031090,0.28617369,616.99,615.56,1.619]
[1740930031293,0.28617369,616.98,615.56,1.619]
[1740930031496,0.28617369,616.97,615.56,1.619]
[1740930031697,0.28617369,616.96,615.56,1.619]
[1740930031899,0.32418063,616.94,615.56,1.619]
[1740930032291,0.28617369,616.93,615.56,1.619]
[1740930032592,0.28617369,616.92,615.56,1.619]
[1740930032795,0.28619178,616.91,615.56,1.619]
[1740930032991,0.28619178,616.9,615.56,1.619]
[1740930033192,0.28619178,616.89,615.56,1.619]
[1740930033394,0.28619178,616.88,615.56,1.619]
[1740930033596,0.28619178,616.87,615.56,1.619]
[1740930033898,0.28619178,616.86,615.56,1.619]
[1740930034201,0.28619178,616.85,615.56,1.619]
[1740930034398,0.2861338,616.84,615.56,1.619]
[1740930034600,0.2861338,616.83,615.56,1.619]
[1740930034802,0.2861338,616.82,615.56,1.619]
[1740930034994,0.32418063,616.94,615.56,1.619]
[1740930034995,0.2861338,616.81,615.56,1.619]
[1740930035294,0.2861338,616.93,615.56,1.619]
[1740930035499,0.2861338,616.92,615.56,1.619]
[1740930035698,0.2861338,616.93,615.56,1.619]
[1740930035898,0.2861338,616.91,615.56,1.619]
[1740930036099,0.2861338,616.9,615.56,1.619]
[1740930036300,0.32418063,616.94,615.56,1.619]
[1740930036301,0.2861338,616.93,615.56,1.619]
[1740930036899,0.2861338,616.92,615.56,1.619]
[1740930037099,0.2861338,616.91,615.56,1.619]
[1740930037397,0.2861338,616.9,615.56,1.619]
[1740930037699,0.2861338,616.89,615.56,1.619]
[1740930037894,0.2861338,616.88,615.56,1.619]
[1740930038094,0.32422267,616.86,615.56,1.619]
[1740930038298,0.2861338,616.85,615.56,1.619]
[1740930038599,0.2861338,616.84,615.56,1.619]
[1740930038796,0.2861338,616.83,615.56,1.619]
[1740930039002,0.2861338,616.82,615.56,1.619]
[1740930039204,0.2861338,616.81,615.56,1.619]
[1740930039404,0.28619585,616.8,615.56,1.619]
[1740930039698,0.28619585,616.79,615.56,1.619]
[1740930039904,0.28619585,616.78,615.56,1.619]
[1740930040104,0.28619585,616.77,615.56,1.619]
[1740930040300,0.28619585,616.76,615.56,1.619]
[1740930040499,0.28619585,616.75,615.56,1.619]
[1740930040905,0.28619585,616.74,615.56,1.619]
[1740930041208,0.28619585,616.73,615.56,1.619]
[1740930041402,0.28619585,616.72,615.56,1.619]
[1740930041704,0.28619585,616.71,615.56,1.619]
[1740930041906,0.28619585,616.7,615.56,1.619]
[1740930042303,0.28619585,616.69,615.56,1.619]
[1740930042502,0.28619585,616.68,615.56,1.619]
[1740930042706,0.28619585,616.67,615.56,1.619]
[1740930043008,0.28619585,616.66,615.56,1.619]
[1740930043207,0.28619585,616.65,615.56,1.619]
[1740930043403,0.28619585,616.64,615.56,1.619]
[1740930043608,0.28619585,616.63,615.56,1.619]
[1740930043907,0.28619585,616.62,615.56,1.619]
[1740930044107,0.32435939,616.6,615.56,1.619]
[1740930044407,0.28624131,616.59,615.56,1.619]
[1740930044907,0.28624131,616.58,615.56,1.619]
[1740930045108,0.28624131,616.57,615.56,1.619]
[1740930045308,0.28624131,616.59,615.56,1.619]
[1740930045606,0.28624131,616.58,615.56,1.619]
[1740930045807,0.28624131,616.59,615.56,1.619]
[1740930046709,1.69595464,616.58,615.56,1.619]
[1740930046908,0.28624131,616.57,615.56,1.619]
[1740930049205,0.28624131,616.56,615.56,1.619]
[1740930049408,0.28624131,616.55,615.56,1.619]
[1740930049609,0.28624131,616.54,615.56,1.619]
[1740930049906,0.28624131,616.53,615.56,1.619]
[1740930050106,0.28624131,616.55,615.56,1.619]
[1740930050311,0.28624131,616.54,615.56,1.619]
[1740930050612,0.28624131,616.53,615.56,1.619]
[1740930050813,0.28624131,616.52,615.56,1.619]
[1740930051009,0.28624131,616.51,615.56,1.619]
[1740930051205,0.28624131,616.55,615.56,1.619]
[1740930051406,0.28624131,616.54,615.56,1.619]
[1740930051610,0.28624131,616.55,615.56,1.619]
[1740930052115,0.32439621,616.53,615.56,1.619]
[1740930052514,0.28624131,616.52,615.56,1.619]
[1740930052912,0.28624131,616.51,615.56,1.619]
[1740930053214,0.28624131,616.5,615.56,1.619]
[1740930053414,0.28624131,616.49,615.56,1.619]
[1740930053811,0.28624131,616.48,615.56,1.619]
[1740930054115,0.28624131,616.47,615.56,1.619]
[1740930054315,0.28624131,616.46,615.56,1.619]
[1740930054515,0.28624131,616.45,615.56,1.619]
[1740930054715,0.28624131,616.44,615.56,1.619]
[1740930054918,0.28624131,616.43,615.56,1.619]
[1740930055110,0.28624131,616.42,615.56,1.619]
[1740930055310,1.98351251,616.42,615.56,1.619]
[1740930055910,0.28624131,616.41,615.56,1.619]
[1740930056113,1.6972712,616.42,615.56,1.619]
[1740930056420,0.28640029,616.41,615.56,1.619]
[1740930056616,0.28640029,616.4,615.56,1.619]
[1740930056917,0.28640029,616.39,615.56,1.619]
[1740930057218,0.28640029,616.38,615.56,1.619]
[1740930057417,0.28640029,616.41,615.56,1.619]
[1740930057614,0.28640029,616.4,615.56,1.619]
[1740930057814,0.28640029,616.39,615.56,1.619]
[1740930058014,0.28640029,616.38,615.56,1.619]
[1740930058217,0.28640029,616.37,615.56,1.619]
[1740930058416,0.28640029,616.36,615.56,1.619]
[1740930058617,0.28640029,616.41,615.56,1.619]
[1740930058811,0.28640029,616.4,615.56,1.619]
[1740930059014,0.28640029,616.39,615.56,1.619]
[1740930059311,0.28640029,616.38,615.56,1.619]
[1740930059516,0.28640029,616.41,615.56,1.619]
[1740930059712,0.28640029,616.4,615.56,1.619]
[1740930060016,0.28640029,616.39,615.56,1.619]
[1740930060216,0.28640029,616.38,615.56,1.619]
[1740930060419,0.28640029,616.37,615.56,1.619]
[1740930060618,0.28640029,616.36,615.56,1.619]
[1740930060818,1.6972712,616.42,615.56,1.619]
[1740930061020,0.28635718,616.41,615.56,1.619]
[1740930061212,0.28635718,616.4,615.56,1.619]
[1740930061416,0.28635718,616.39,613.78,1.16391059]
[1740930061616,0.28635718,616.38,613.78,1.16391059]
[1740930061916,0.28635718,616.37,613.86,1.16391059]
[1740930062112,0.28635718,616.36,613.87,0.32580187]
[1740930062313,0.28635718,616.35,613.87,0.32580187]
[1740930062513,0.28635718,616.34,613.88,0.29905316]
[1740930062711,0.28635718,616.33,613.88,0.29905316]
[1740930062915,0.28635718,616.32,613.88,0.29905316]
[1740930063116,0.28635718,616.31,613.88,0.29905316]
[1740930063318,0.28635718,616.31,613.89,0.29905316]
[1740930063518,0.28635718,616.3,613.9,0.29905316]
[1740930063818,0.28635718,616.29,613.91,0.29905316]
[1740930064020,0.28635718,616.28,613.92,0.29905316]
[1740930064212,0.28635718,616.28,613.93,0.29905316]
[1740930064413,0.28635718,616.27,613.94,0.29905316]
[1740930064616,1.69772661,616.28,613.95,0.29905316]
[1740930064927,1.69772661,616.28,613.96,0.29905316]
[1740930065218,0.28604901,616.27,613.97,0.29905316]
[1740930065417,0.28604901,616.27,613.98,0.29905316]
[1740930065619,0.28595308,616.26,613.99,0.89532991]
[1740930066017,0.28595308,616.25,614.0,0.89532991]
[1740930066213,0.28595308,616.27,614.01,0.89532991]
[1740930066416,0.28595308,616.27,614.02,0.89532991]
[1740930066619,0.28595308,616.27,614.03,0.2984433]
[1740930067020,0.28595308,616.27,614.65,1.16391059]
[1740930067219,0.28595308,616.52,614.66,0.2984433]
[1740930067520,1.69703669,616.26,614.66,0.2984433]
[1740930067819,1.69632666,616.51,614.66,0.2984433]
[1740930068721,0.28586847,616.5,614.66,0.2984433]
[1740930069821,1.69632666,616.51,614.66,0.2984433]
[1740930070122,0.32439621,616.53,614.66,0.2984433]
[1740930070322,1.69629909,616.5,614.66,0.2984433]
[1740930070620,1.69629909,616.5,614.67,0.2984433]
[1740930070816,1.69629909,616.5,614.55,0.2984433]
[1740930071014,1.69629909,616.5,614.56,0.2984433]
[1740930071214,0.28589343,616.49,614.55,0.2984433]
[1740930071422,1.69629909,616.5,614.56,0.2984433]
[1740930071619,1.69629909,616.5,614.55,0.2984433]
[1740930071815,1.69629909,616.5,614.56,0.2984433]
[1740930071816,0.28587925,616.49,614.56,0.2984433]
[1740930072016,1.69629909,616.5,614.57,0.2984433]
[1740930072217,1.69629909,616.5,614.55,0.2984433]
[1740930072422,0.28580932,616.49,614.56,0.2984433]
[1740930072722,0.28580932,616.49,614.57,0.2984433]
[1740930072920,0.28580932,616.49,614.58,0.2984433]
[1740930073117,0.28580932,616.49,614.59,0.2984433]
[1740930073321,0.28580932,616.48,614.6,0.2984433]
[1740930073516,1.69593398,616.48,614.61,0.2984433]
[1740930073716,1.69593398,616.48,614.11,2.59782453]
[1740930073717,1.69593398,616.48,614.62,0.2984433]
[1740930074024,1.69593398,616.48,614.63,0.2984433]
[1740930074220,1.69593398,616.48,614.64,0.2984433]
[1740930074422,0.28580373,616.47,614.13,0.2984433]
[1740930074622,0.28580373,616.47,614.14,0.2984433]
[1740930074822,1.69593398,616.48,614.09,0.2984433]
[1740930075125,1.69593398,616.48,614.1,0.2984433]
[1740930075322,1.69593398,616.48,614.11,0.2984433]
[1740930075523,1.69593398,616.48,614.12,0.2984433]
[1740930075718,1.69593398,616.48,614.13,0.89510028]
[1740930075923,1.69593398,616.48,614.14,0.89510028]
[1740930076122,1.69593398,616.48,614.52,1.16391059]
[1740930076423,1.69593398,616.48,614.53,0.89510028]
[1740930076624,1.69593398,616.48,614.52,1.16391059]
[1740930076625,1.69593398,616.48,614.54,0.2984433]
[1740930076824,1.69593398,616.48,614.55,0.2984433]
[1740930077023,1.69593398,616.48,614.56,0.2984433]
[1740930077427,1.69593398,616.48,614.57,0.2984433]
[1740930077726,1.69593398,616.48,614.58,0.2984433]
[1740930077925,1.69593398,616.48,614.53,0.2984433]
[1740930078122,1.69593398,616.48,614.55,0.32544137]
[1740930078324,1.69593398,616.48,614.58,1.16391059]
[1740930078524,1.69593398,616.48,614.59,0.2984433]
[1740930078723,1.69593398,616.48,614.6,0.89510028]
[1740930079126,1.69593398,616.48,614.61,0.2984433]
[1740930079319,1.69593398,616.48,614.62,0.2984433]
[1740930079523,1.69593398,616.48,614.63,0.89510028]
[1740930079725,1.44632993,618.67,614.58,1.16391059]
[1740930079726,1.44632993,618.67,614.64,0.2984433]
[1740930079928,1.6947708,617.25,614.64,0.89510028]
[1740930080122,1.44632993,618.67,614.65,0.89510028]
[1740930080322,1.69402143,617.24,614.66,0.89510028]
[1740930080526,1.69402143,617.24,614.67,0.89510028]
[1740930080728,1.44632993,618.67,614.67,0.89510028]
[1740930080931,0.28534431,618.66,614.68,0.89510028]
[1740930081229,0.28534431,618.65,614.69,0.2984433]
[1740930081430,0.28534431,618.64,614.82,1.16391059]
[1740930081930,1.97861017,618.63,614.83,0.89510028]
[1740930082127,1.97861017,618.63,614.83,0.2984433]
[1740930082427,0.28534431,618.62,614.84,0.2984433]
[1740930082631,0.28534431,618.61,614.85,0.2984433]
[1740930082928,0.28534431,618.6,614.86,0.2984433]
[1740930083126,0.28534431,618.59,614.87,0.2984433]
[1740930083327,0.28534431,618.58,614.88,0.89510028]
[1740930083528,0.28534431,618.58,614.82,1.16391059]
[1740930083529,0.28534431,618.57,614.89,0.89510028]
[1740930083825,0.28534431,618.57,614.56,2.56667725]
[1740930083826,0.28534431,618.56,615.0,1.16391059]
[1740930084022,0.28522665,618.55,615.01,0.88855386]
[1740930084227,1.69326586,618.63,615.02,0.88855386]
[1740930084228,0.28522665,618.54,615.02,0.88855386]
[1740930084424,0.28522665,618.53,615.03,0.88855386]
[1740930084623,0.28522665,618.52,615.04,0.88855386]
[1740930084832,0.28522665,618.51,615.05,0.88855386]
[1740930085029,0.28522665,618.5,615.06,0.88855386]
[1740930085231,0.28522665,618.62,615.07,0.88855386]
[1740930085427,0.28522665,618.61,615.08,0.88855386]
[1740930085625,0.28522665,618.6,615.09,0.88855386]
[1740930085828,0.28522665,618.59,615.1,0.88855386]
[1740930086033,0.28522665,618.62,615.11,0.29618462]
[1740930086330,0.28522665,618.61,615.12,0.88855386]
[1740930086631,0.28522665,618.6,615.13,0.88855386]
[1740930086833,0.32339434,618.44,615.14,0.88855386]
[1740930087033,0.28522665,618.43,615.15,0.29618462]
[1740930087234,0.28522665,618.42,615.16,0.29618462]
[1740930087634,0.28522665,618.41,615.17,0.29618462]
[1740930087835,0.28522665,618.4,615.18,0.29618462]
[1740930088031,0.28522665,618.39,615.19,0.29618462]
[1740930088331,0.28522665,618.38,615.2,0.29618462]
[1740930088535,0.28522665,618.37,615.21,0.29618462]
[1740930088736,0.28522665,618.36,615.22,0.29618462]
[1740930088938,0.28522665,618.35,615.23,0.29618462]
[1740930089237,0.28522665,618.34,615.24,0.29618462]
[1740930089436,0.28522665,618.33,615.25,0.29618462]
[1740930089633,0.28522665,618.32,615.26,0.29618462]
[1740930089831,0.28522665,618.32,614.5,1.16391059]
[1740930089832,0.28522665,618.31,615.27,0.29618462]
[1740930090033,0.28522665,618.37,615.28,0.29618462]
[1740930090232,0.28522665,618.36,615.29,0.29618462]
[1740930090433,0.28522665,618.35,615.3,0.29618462]
[1740930090639,0.28522665,618.34,615.31,0.88855386]
[1740930090837,0.28522665,618.33,615.32,0.88855386]
[1740930091037,0.28522665,618.32,615.33,0.29618462]
[1740930091235,0.28522665,618.31,615.34,0.29618462]
[1740930091434,0.28522665,618.37,614.58,0.29618462]
[1740930091640,0.28522665,618.36,614.59,0.29618462]
[1740930091841,0.28522665,618.35,614.6,0.88855386]
[1740930092040,0.28522665,618.34,614.61,0.88855386]
[1740930092335,0.28522665,618.37,614.62,0.88855386]
[1740930092539,0.28522665,618.36,614.63,0.88855386]
[1740930092740,0.28522665,618.35,614.64,2.05246445]
[1740930092935,0.28522665,618.34,614.65,0.88855386]
[1740930093142,0.28522665,618.37,614.66,0.29618462]
[1740930093438,0.28522665,618.36,614.67,0.88855386]
[1740930093641,0.28522665,618.35,614.68,0.88855386]
[1740930093943,0.28522665,618.34,614.69,0.88855386]
[1740930094139,0.28522665,618.33,614.7,0.88855386]
[1740930094442,0.28522665,618.32,614.71,0.88855386]
[1740930094642,0.28522665,618.31,614.8,1.16391059]
[1740930094838,0.28522665,618.3,614.81,0.88855386]
[1740930095039,0.28522665,618.29,614.82,0.29618462]
[1740930095235,0.28522665,618.28,614.83,0.88855386]
[1740930095442,0.28522665,618.37,614.84,0.29618462]
[1740930095639,0.28522665,618.27,614.84,0.88855386]
[1740930095843,0.28522665,618.26,614.85,0.88855386]
[1740930096145,0.28522665,618.25,614.86,0.88855386]
[1740930096443,0.28522665,618.24,614.87,0.29618462]
[1740930096742,0.28522665,618.23,614.88,0.88855386]
[1740930096943,0.28522665,618.22,614.89,0.88855386]
[1740930097141,0.28522665,618.22,614.9,0.59236924]
[1740930097340,0.28522665,618.21,614.91,0.88855386]
[1740930097545,0.28522665,618.37,614.92,0.88855386]
[1740930097738,0.28522665,618.37,614.93,0.88855386]
[1740930098143,0.28522665,618.37,614.94,0.88855386]
[1740930098343,0.28522665,618.37,614.95,0.88855386]
[1740930098543,0.28522665,618.37,614.96,0.88855386]
[1740930098740,0.28522665,618.37,614.97,0.88855386]
[1740930099048,0.28522665,618.37,614.98,0.88855386]
[1740930099245,0.28522665,618.37,614.99,0.88855386]
[1740930099445,0.28522665,618.37,615.0,0.88855386]
[1740930099645,0.28522665,618.37,615.01,0.88855386]
[1740930099845,0.28522665,618.37,614.91,0.737]
[1740930099846,0.28522665,618.37,615.02,0.88855386]
[1740930100049,0.28522665,618.37,615.03,0.88855386]
[1740930100249,0.28522665,618.37,615.04,0.88855386]
[1740930100448,0.28522665,618.37,615.05,0.88855386]
[1740930100748,0.28522665,618.37,614.91,0.737]
[1740930100749,0.28522665,618.37,615.61,1.16391059]
[1740930100947,0.28522665,618.37,615.62,0.29618462]
[1740930101142,0.28522665,618.37,615.63,0.29618462]
[1740930101348,0.28522665,618.37,615.64,0.29618462]
[1740930101548,0.28522665,618.37,615.65,0.29618462]
[1740930101746,0.28522665,618.37,615.66,0.29618462]
[1740930102048,0.28522665,618.37,615.67,0.29618462]
[1740930102249,0.28522665,618.37,615.68,0.29618462]
[1740930102446,0.28522665,618.37,615.61,1.16391059]
[1740930102447,0.28522665,618.37,615.81,0.32477549]
[1740930102643,0.28522665,618.36,615.82,0.29618462]
[1740930102842,0.28522665,618.35,615.83,0.29618462]
[1740930103042,0.28522665,618.34,615.84,0.29618462]
[1740930103242,0.28522665,618.43,615.85,0.29618462]
[1740930103447,1.69209948,618.34,615.86,0.29618462]
[1740930103648,0.28522665,618.33,615.87,0.29618462]
[1740930103949,0.28522665,618.32,615.88,0.29618462]
[1740930104147,0.28522665,618.32,615.89,0.29618462]
[1740930104349,0.28522665,618.32,615.82,0.29618462]
[1740930104550,0.28522665,618.32,615.83,0.29618462]
[1740930104848,0.28522665,618.32,615.84,0.29618462]
[1740930105049,0.28522665,618.32,615.82,0.29618462]
[1740930105244,0.28522665,618.32,615.83,0.29618462]
[1740930105448,0.28522665,618.32,615.84,0.29618462]
[1740930105649,0.28522665,618.32,615.85,0.29618462]
[1740930105945,0.28522665,618.32,615.86,0.29618462]
[1740930106149,0.28522665,618.32,615.87,0.29618462]
[1740930106349,0.28522665,618.31,615.88,0.29618462]
[1740930106546,0.28522665,618.32,615.89,0.29618462]
[1740930106747,0.28522665,618.32,615.9,0.29618462]
[1740930106947,0.28522665,618.32,615.91,0.29618462]
[1740930107350,0.28522665,618.32,615.92,0.29618462]
[1740930107550,0.28522665,618.32,615.93,0.29618462]
[1740930107752,0.28522665,618.32,615.94,0.29618462]
[1740930107952,0.28522665,618.32,615.95,0.29618462]
[1740930108152,0.28522665,618.32,615.86,0.841]
[1740930108153,0.28522665,618.32,615.87,0.29618462]
[1740930108352,0.28522665,618.32,615.88,0.29618462]
[1740930108652,0.28522665,618.32,615.89,0.29618462]
[1740930108852,0.28522665,618.32,615.9,0.29618462]
[1740930109050,0.28522665,618.32,615.87,0.29618462]
[1740930109250,0.28522665,618.32,615.91,0.29618462]
[1740930109447,1.97718902,618.31,615.92,0.29618462]
[1740930109650,0.28522665,618.3,615.93,0.29618462]
[1740930109847,0.28522665,618.3,615.94,0.29618462]
[1740930110051,0.28522665,618.3,615.95,0.29618462]
[1740930110454,0.28522665,618.29,615.96,0.29618462]
[1740930110654,0.28522665,618.3,616.06,0.3246437]
[1740930110953,0.28522665,618.29,616.07,0.29618462]
[1740930111154,0.28522665,618.28,616.08,0.29618462]
[1740930111354,0.28522665,618.27,616.09,0.29618462]
[1740930111549,0.28522665,618.3,616.1,0.29618462]
[1740930111753,0.28522665,618.29,616.14,1.16391059]
[1740930112054,0.28509877,618.28,616.15,0.29563421]
[1740930112251,0.28509877,618.43,616.16,0.29563421]
[1740930112452,1.69157171,618.28,616.17,0.29563421]
[1740930112751,0.32339434,618.44,616.18,0.29563421]
[1740930112955,1.69157171,618.27,616.19,0.29563421]
[1740930113256,0.28501394,618.26,616.2,0.29563421]
[1740930113452,0.28501394,618.25,616.59,1.16391059]
[1740930113756,0.28507089,618.24,616.6,0.2956033]
[1740930114150,0.28507089,618.23,616.6,0.2956033]
[1740930114354,1.69137303,618.23,616.6,0.2956033]
[1740930114552,0.28507089,618.22,616.6,0.2956033]
[1740930114752,1.69137303,618.23,616.59,1.16391059]
[1740930115256,0.28508251,618.22,616.6,0.29571239]
[1740930115556,1.97638018,618.21,616.6,0.29571239]
[1740930116059,1.97638018,618.21,616.61,0.32435412]